bitfinex/quotes_SOLUSD_20241226
["timestamp","ask_amount","ask_price","bid_price","bid_amount"]
[1735240803484,1.5412,189.26,189.21,7.80514771]
[1735240803985,1.5412,189.26,189.19,13.2138]
[1735240803986,7.80514771,189.25,189.18,7.80514771]
[1735240804280,7.80514771,189.21,189.14,7.80514771]
[1735240804473,13.99614771,189.21,189.15,23.776884]
[1735240805179,6.191,189.21,189.17,7.80514771]
[1735240806262,6.191,189.21,189.16,12.21392162]
[1735240806457,18.40492162,189.21,189.14,12.21392162]
[1735240806661,12.21392162,189.19,189.13,12.21392162]
[1735240806881,12.21392162,189.19,189.12,12.21392162]
[1735240807084,12.21392162,189.19,189.13,23.776884]
[1735240807283,12.21392162,189.18,189.12,12.21392162]
[1735240807774,12.21392162,189.16,189.1,12.21392162]
[1735240808292,12.21392162,189.17,189.1,12.21392162]
[1735240808489,1.5412,189.2,189.14,12.21392162]
[1735240808667,1.5412,189.2,189.17,12.21392162]
[1735240809083,1.5412,189.2,189.14,32.21392162]
[1735240809281,13.75512162,189.2,189.14,12.21392162]
[1735240809480,13.75512162,189.2,189.13,12.21392162]
[1735240809680,12.21392162,189.19,189.12,12.21392162]
[1735240810367,12.21392162,189.18,189.12,12.21392162]
[1735240810769,12.21392162,189.17,189.11,12.21392162]
[1735240811069,12.21392162,189.17,189.1,25.43372162]
[1735240812064,12.21392162,189.17,189.11,12.21392162]
[1735240813368,12.21392162,189.16,189.1,12.21392162]
[1735240815290,0.12549,189.16,189.1,12.21392162]
[1735240815491,12.33941162,189.16,189.1,12.21392162]
[1735240816998,0.12549,189.16,189.1,12.21392162]
[1735240817591,0.12549,189.16,189.11,12.21392162]
[1735240819594,0.12549,189.16,189.1,12.21392162]
[1735240819973,0.12549,189.16,189.11,12.21392162]
[1735240821195,0.12549,189.17,189.11,12.21392162]
[1735240821991,12.21392162,189.18,189.11,12.21392162]
[1735240822198,13.75512162,189.2,189.14,12.21392162]
[1735240822374,1.5412,189.2,189.14,12.21392162]
[1735240822570,1.5412,189.2,189.16,12.21392162]
[1735240822783,1.5412,189.2,189.19,12.21392162]
[1735240822990,8.30797213,189.22,189.19,12.21392162]
[1735240823202,8.30797213,189.22,189.2,12.21392162]
[1735240823378,9.90697213,189.25,189.19,12.21392162]
[1735240824198,1.599,189.25,189.19,12.21392162]
[1735240824407,13.81292162,189.25,189.19,12.21392162]
[1735240824574,1.599,189.25,189.19,12.21392162]
[1735240825593,6.447,189.26,189.23,12.21392162]
[1735240825798,21.22205232,189.27,189.23,12.21392162]
[1735240827604,21.22205232,189.27,189.24,12.21392162]
[1735240828600,21.22205232,189.27,189.23,12.21392162]
[1735240829406,21.22205232,189.27,189.24,12.21392162]
[1735240829602,21.22205232,189.27,189.26,12.21392162]
[1735240829996,8.046,189.31,189.26,12.21392162]
[1735240830606,8.046,189.31,189.27,12.21392162]
[1735240830820,8.046,189.31,189.26,12.21392162]
[1735240831197,1.599,189.31,189.28,12.21392162]
[1735240831399,12.21392162,189.31,189.22,13.2119]
[1735240831617,12.21392162,189.31,189.24,12.21392162]
[1735240832120,12.21392162,189.33,189.26,12.21392162]
[1735240832424,12.21392162,189.33,189.27,12.21392162]
[1735240832624,12.33941162,189.34,189.27,12.21392162]
[1735240832802,20.24342162,189.35,189.28,12.21392162]
[1735240833210,12.21392162,189.34,189.27,12.21392162]
[1735240833416,12.21392162,189.33,189.27,12.21392162]
[1735240833920,12.21392162,189.34,189.27,12.21392162]
[1735240834118,20.24342162,189.35,189.28,12.21392162]
[1735240835629,8.0295,189.39,189.34,12.21392162]
[1735240836219,8.0295,189.39,189.33,7.80335195]
[1735240836430,8.0295,189.39,189.32,7.80335195]
[1735240836431,15.83285195,189.39,189.32,7.80335195]
[1735240836725,8.0295,189.39,189.33,7.80335195]
[1735240838225,12.31943632,189.38,189.31,33.2055]
[1735240838534,20.22344632,189.39,189.32,12.19394632]
[1735240838825,8.0295,189.39,189.33,12.19394632]
[1735240839924,8.0295,189.39,189.32,35.97083032]
[1735240840643,8.0295,189.39,189.33,12.19394632]
[1735240843906,12.19394632,189.37,189.31,13.2055]
[1735240844119,12.19394632,189.36,189.29,12.19394632]
[1735240844319,12.19394632,189.36,189.3,23.776884]
[1735240845129,0.12549,189.38,189.31,12.19394632]
[1735240845130,12.31943632,189.38,189.31,12.19394632]
[1735240845328,0.12549,189.38,189.32,12.19394632]
[1735240845621,20.22344632,189.39,189.32,12.19394632]
[1735240845809,12.19394632,189.38,189.32,23.776884]
[1735240846130,20.22344632,189.39,189.32,35.97083032]
[1735240848226,12.19394632,189.38,189.31,12.19394632]
[1735240848529,12.19394632,189.38,189.3,32.19394632]
[1735240848723,12.19394632,189.38,189.27,39.6258]
[1735240848724,12.19394632,189.36,189.29,12.19394632]
[1735240848918,12.19394632,189.35,189.28,12.19394632]
[1735240849119,12.19394632,189.33,189.27,13.2086]
[1735240849450,12.19394632,189.31,189.24,25.40454632]
[1735240849727,12.19394632,189.31,189.25,23.776884]
[1735240850429,12.19394632,189.31,189.24,25.40454632]
[1735240850624,12.19394632,189.31,189.25,12.19394632]
[1735240850825,12.19394632,189.3,189.24,23.776884]
[1735240851326,12.31943632,189.29,189.22,12.19394632]
[1735240851525,12.19394632,189.29,189.22,12.19394632]
[1735240851827,12.19394632,189.29,189.23,23.776884]
[1735240852124,12.31943632,189.31,189.24,12.19394632]
[1735240852330,0.12549,189.29,189.23,12.19394632]
[1735240852629,12.19394632,189.26,189.19,12.19394632]
[1735240852833,6.2122,189.24,189.18,25.40884632]
[1735240853127,6.2122,189.24,189.19,12.19394632]
[1735240853826,6.2122,189.24,189.2,35.97083032]
[1735240854026,6.2122,189.24,189.2,12.19394632]
[1735240854233,6.2122,189.24,189.19,12.19394632]
[1735240854542,6.2122,189.24,189.15,36.993884]
[1735240854844,6.2122,189.24,189.2,12.19394632]
[1735240857239,1.5679,189.25,189.22,12.19394632]
[1735240857442,6.3967,189.28,189.23,12.19394632]
[1735240858150,6.3967,189.28,189.23,7.81198807]
[1735240859246,6.3967,189.28,189.25,7.81198807]
[1735240859548,6.3967,189.28,189.24,7.81198807]
[1735240860051,6.3967,189.28,189.23,7.81198807]
[1735240860254,6.3967,189.28,189.22,7.81198807]
[1735240860446,14.20868807,189.28,189.21,7.81198807]
[1735240860946,14.20868807,189.28,189.2,13.2129]
[1735240861127,7.81198807,189.26,189.19,7.81198807]
[1735240861451,7.81198807,189.25,189.18,7.81198807]
[1735240861652,7.81198807,189.24,189.17,21.02748807]
[1735240862050,7.81198807,189.25,189.18,7.81198807]
[1735240862247,12.21280083,189.25,189.18,12.21280083]
[1735240862435,12.21280083,189.23,189.14,26.4342]
[1735240862634,0.12549,189.2,189.14,12.21280083]
[1735240862838,12.33829083,189.2,189.13,25.43120083]
[1735240863932,12.33829083,189.2,189.13,12.21280083]
[1735240864134,12.33829083,189.18,189.11,12.21280083]
[1735240864648,12.21280083,189.17,189.1,12.21280083]
[1735240864850,12.21280083,189.17,189.08,13.2219]
[1735240864851,0.12549,189.17,189.11,12.21280083]
[1735240865239,0.12549,189.17,189.12,12.21280083]
[1735240867339,0.12549,189.18,189.12,12.21280083]
[1735240869452,0.12549,189.18,189.11,12.21280083]
[1735240869763,0.12549,189.17,189.11,12.21280083]
[1735240872455,0.12549,189.18,189.11,12.21280083]
[1735240872661,0.12549,189.18,189.12,12.21280083]
[1735240877160,12.33829083,189.2,189.12,12.21280083]
[1735240877367,12.33829083,189.2,189.13,12.21280083]
[1735240877660,0.12549,189.2,189.14,12.21280083]
[1735240877861,0.12549,189.2,189.15,12.21280083]
[1735240879078,6.3967,189.21,189.16,12.21280083]
[1735240880264,6.3967,189.21,189.15,12.21280083]
[1735240880971,12.33829083,189.2,189.13,12.21280083]
[1735240881171,12.33829083,189.17,189.04,2.11261766]
[1735240881461,0.12549,189.17,189.11,12.21280083]
[1735240882759,12.21280083,189.2,189.13,12.21280083]
[1735240883068,18.60950083,189.21,189.14,12.21280083]
[1735240883669,18.60950083,189.21,189.11,12.21280083]
[1735240883670,12.21280083,189.18,189.11,12.21280083]
[1735240883861,6.3967,189.21,189.06,23.776884]
[1735240883862,18.60950083,189.21,189.14,12.21280083]
[1735240884264,0.12549,189.2,189.14,7.81950533]
[1735240885371,7.94499533,189.2,189.13,7.81950533]
[1735240885764,0.12549,189.18,189.12,21.03800533]
[1735240886069,7.94499533,189.18,189.11,7.81950533]
[1735240887679,0.12549,189.18,189.12,7.81950533]
[1735240892173,7.81950533,189.18,189.06,39.6699]
[1735240892384,7.94499533,189.17,189.1,7.81950533]
[1735240892676,7.94499533,189.17,189.06,13.2233]
[1735240892677,9.47920533,189.16,189.06,13.2233]
[1735240892866,7.94499533,189.15,189.06,13.2233]
[1735240893067,7.94499533,189.15,189.08,7.81950533]
[1735240893877,0.12549,189.13,189.07,7.81950533]
[1735240895183,0.12549,189.12,189.06,7.81950533]
[1735240895379,7.94499533,189.12,189.03,33.2251]
[1735240895583,7.81950533,189.11,189.03,13.2251]
[1735240895759,7.9846,189.09,189.03,21.04460533]
[1735240896077,7.9846,189.09,189.01,7.81950533]
[1735240896078,7.94499533,189.08,189.01,7.81950533]
[1735240896277,0.12549,189.06,189.0,7.81950533]
[1735240896485,7.81950533,189.04,188.97,21.04880533]
[1735240896776,0.12549,189.04,188.98,7.81950533]
[1735240897856,0.12549,189.03,188.97,7.81950533]
[1735240898260,12.36481813,189.03,188.97,12.23932813]
[1735240898465,1.6597,189.01,188.97,12.23932813]
[1735240899585,1.6597,189.01,188.98,12.23932813]
[1735240899774,1.6597,189.01,188.99,12.23932813]
[1735240899977,1.6597,189.01,188.98,12.23932813]
[1735240900174,1.6597,189.01,188.97,12.23932813]
[1735240900384,1.6597,189.01,188.99,12.23932813]
[1735240900563,1.6597,189.01,188.98,12.23932813]
[1735240901091,1.6597,189.01,188.99,12.23932813]
[1735240901279,1.6597,189.06,189.0,12.23932813]
[1735240901790,13.89902813,189.06,188.99,12.23932813]
[1735240901993,12.36481813,189.05,188.98,12.23932813]
[1735240902174,0.12549,189.03,188.98,12.23932813]
[1735240902774,0.12549,189.04,188.99,12.23932813]
[1735240903186,13.89902813,189.06,189.0,12.23932813]
[1735240903487,1.6597,189.06,189.0,12.23932813]
[1735240903991,1.6597,189.06,189.03,12.23932813]
[1735240904194,6.3249,189.07,189.04,12.23932813]
[1735240904490,8.0298,189.11,189.05,12.23932813]
[1735240904789,20.26912813,189.11,189.04,12.23932813]
[1735240906306,0.12549,189.09,189.03,12.23932813]
[1735240907090,8.0298,189.11,188.99,13.2282]
[1735240907091,20.26912813,189.11,189.04,12.23932813]
[1735240907290,12.36481813,189.1,189.03,12.23932813]
[1735240907703,12.36481813,189.1,189.02,12.23932813]
[1735240908694,12.36481813,189.08,189.01,25.46562813]
[1735240909091,12.36481813,189.08,189.01,12.23932813]
[1735240909412,12.36481813,189.05,188.98,25.46812813]
[1735240910616,0.12549,189.03,188.97,12.23932813]
[1735240910782,20.19992813,189.02,188.95,12.23932813]
[1735240911497,7.9606,189.02,188.97,12.23932813]
[1735240912214,7.9606,189.02,188.96,12.23932813]
[1735240912799,20.19992813,189.02,188.95,25.46992813]
[1735240913995,0.12549,189.01,188.91,13.2331]
[1735240914204,12.23932813,188.98,188.91,25.47242813]
[1735240914997,12.23932813,188.96,188.9,12.23932813]
[1735240915380,12.23932813,188.96,188.89,12.23932813]
[1735240916785,0.12549,188.96,188.91,12.23932813]
[1735240917700,12.23932813,188.97,188.9,12.23932813]
[1735240917895,12.23932813,188.97,188.91,12.23932813]
[1735240918102,12.23932813,188.98,188.91,12.23932813]
[1735240919405,12.23932813,188.96,188.89,12.23932813]
[1735240919899,0.12549,188.95,188.89,12.23932813]
[1735240920285,0.12549,188.95,188.89,7.83954649]
[1735240920697,7.83954649,188.97,188.9,7.83954649]
[1735240920897,7.83954649,188.98,188.91,7.83954649]
[1735240921203,0.12549,188.97,188.91,7.83954649]
[1735240921582,0.12549,188.97,188.86,23.776884]
[1735240921583,7.83954649,188.97,188.9,7.83954649]
[1735240922703,7.9606,189.02,188.91,31.61643049]
[1735240922892,7.83954649,189.0,188.93,7.83954649]
[1735240923092,7.83954649,188.99,188.92,7.83954649]
[1735240923401,7.83954649,189.0,188.93,7.83954649]
[1735240923582,15.80014649,189.02,188.95,7.83954649]
[1735240923789,7.9606,189.02,188.96,7.83954649]
[1735240924001,7.9606,189.02,188.99,7.83954649]
[1735240925116,7.9606,189.02,188.98,31.61643049]
[1735240925417,7.9606,189.02,188.98,7.83954649]
[1735240926210,7.9606,189.02,188.98,12.23774037]
[1735240926403,7.9606,189.02,188.99,12.23774037]
[1735240926711,6.6351,189.06,189.01,12.23774037]
[1735240927090,6.6351,189.06,189.0,12.23774037]
[1735240927577,0.12549,189.05,188.98,25.46634037]
[1735240927779,0.12549,189.03,188.97,12.23774037]
[1735240927983,12.23774037,189.04,188.97,12.23774037]
[1735240928395,12.23774037,189.05,188.98,12.23774037]
[1735240928593,18.87284037,189.06,188.99,12.23774037]
[1735240928792,12.36323037,189.05,188.98,12.23774037]
[1735240928997,18.87284037,189.06,188.99,12.23774037]
[1735240929295,6.6351,189.06,189.0,12.23774037]
[1735240930213,12.36323037,189.05,188.98,25.46634037]
[1735240930586,12.23774037,189.04,188.98,13.2286]
[1735240931002,12.36323037,189.05,188.98,12.23774037]
[1735240932293,0.12549,189.05,188.99,12.23774037]
[1735240932610,0.12549,189.05,188.97,13.2293]
[1735240932611,6.6351,189.06,189.0,12.23774037]
[1735240932792,18.87284037,189.06,188.99,12.23774037]
[1735240934609,6.6351,189.06,189.01,12.23774037]
[1735240934995,6.6351,189.06,189.0,12.23774037]
[1735240936290,12.23774037,189.04,188.97,12.23774037]
[1735240936486,12.23774037,189.04,188.93,27.25836359]
[1735240936487,12.23774037,189.0,188.93,12.23774037]
[1735240936702,18.31294037,188.98,188.91,12.23774037]
[1735240936916,12.23774037,188.96,188.89,12.23774037]
[1735240938718,0.12549,188.95,188.89,12.23774037]
[1735240938914,12.36323037,188.95,188.88,12.23774037]
[1735240939219,12.23774037,188.93,188.86,12.23774037]
[1735240940714,0.12549,188.92,188.86,12.23774037]
[1735240940914,0.12549,188.9,188.84,12.23774037]
[1735240941220,0.12549,188.9,188.85,12.23774037]
[1735240941813,1.581,188.91,188.85,12.23774037]
[1735240942014,1.581,188.91,188.86,12.23774037]
[1735240943430,1.581,188.91,188.87,12.23774037]
[1735240944128,1.581,188.91,188.85,12.23774037]
[1735240944522,13.81874037,188.91,188.85,12.23774037]
[1735240944730,12.36323037,188.9,188.83,12.23774037]
[1735240945225,0.12549,188.9,188.84,12.23774037]
[1735240945525,6.0752,188.89,188.83,12.23774037]
[1735240945731,6.0752,188.89,188.84,12.23774037]
[1735240946528,6.0752,188.89,188.83,12.23774037]
[1735240947430,18.31294037,188.89,188.82,12.23774037]
[1735240948818,0.12549,188.88,188.82,12.23774037]
[1735240949003,12.36323037,188.88,188.81,12.23774037]
[1735240950228,0.12549,188.86,188.8,12.23774037]
[1735240950407,12.23774037,188.86,188.79,12.23774037]
[1735240951118,12.23774037,188.86,188.8,12.23774037]
[1735240951518,0.12549,188.86,188.8,12.23774037]
[1735240952205,12.23774037,188.86,188.79,12.23774037]
[1735240953834,0.12549,188.85,188.79,12.23774037]
[1735240955606,12.23774037,188.85,188.78,25.48004037]
[1735240956013,13.86584037,188.83,188.76,12.23774037]
[1735240956225,9.47875462,188.83,188.76,7.85065462]
[1735240956512,9.47875462,188.83,188.77,7.85065462]
[1735240958034,1.6281,188.83,188.77,7.85065462]
[1735240960358,9.47875462,188.83,188.76,7.85065462]
[1735240961356,14.04395462,188.82,188.76,7.85065462]
[1735240961551,14.04395462,188.82,188.71,13.2478]
[1735240961552,7.85065462,188.8,188.71,13.2478]
[1735240961856,7.85065462,188.79,188.72,7.85065462]
[1735240963130,0.12549,188.79,188.74,7.85065462]
[1735240963334,7.85065462,188.81,188.75,7.85065462]
[1735240964461,0.12549,188.8,188.75,7.85065462]
[1735240964755,0.12549,188.8,188.74,7.85065462]
[1735240965465,7.85065462,188.8,188.73,7.85065462]
[1735240965751,7.97614462,188.79,188.72,21.09705462]
[1735240965957,7.85065462,188.78,188.72,21.09705462]
[1735240966337,0.12549,188.77,188.71,7.85065462]
[1735240966541,9.44205462,188.76,188.7,7.85065462]
[1735240967060,1.5914,188.76,188.7,7.85065462]
[1735240967967,9.44205462,188.76,188.7,7.85065462]
[1735240968139,1.5914,188.76,188.7,7.85065462]
[1735240969063,1.5914,188.76,188.71,7.85065462]
[1735240969256,9.44205462,188.76,188.7,7.85065462]
[1735240969972,6.1788,188.75,188.7,7.85065462]
[1735240970764,0.12549,188.74,188.66,25.87576765]
[1735240970951,7.97614462,188.74,188.67,7.85065462]
[1735240972757,7.97614462,188.74,188.68,7.85065462]
[1735240973253,7.97614462,188.74,188.67,7.85065462]
[1735240973656,7.85065462,188.72,188.62,13.2541]
[1735240973862,7.85065462,188.71,188.65,7.85065462]
[1735240975274,7.97614462,188.74,188.67,7.85065462]
[1735240975575,7.85065462,188.72,188.65,7.85065462]
[1735240976153,7.85065462,188.67,188.61,7.85065462]
[1735240976467,0.12549,188.68,188.62,7.85065462]
[1735240977356,7.97614462,188.68,188.61,7.85065462]
[1735240977571,0.12549,188.66,188.61,7.85065462]
[1735240977973,7.97614462,188.66,188.59,7.85065462]
[1735240978276,7.85065462,188.65,188.59,7.85065462]
[1735240978589,7.97614462,188.66,188.59,7.85065462]
[1735240979279,6.1788,188.69,188.6,31.62753862]
[1735240979479,7.85065462,188.66,188.6,31.62753862]
[1735240979855,7.85065462,188.66,188.6,23.776884]
[1735240980155,7.85065462,188.66,188.6,31.62753862]
[1735240981061,6.1788,188.69,188.6,31.62753862]
[1735240981265,0.12549,188.66,188.6,31.62753862]
[1735240981460,6.1788,188.69,188.63,7.85065462]
[1735240981668,6.1788,188.69,188.66,7.85065462]
[1735240982587,1.5914,188.7,188.67,31.62753862]
[1735240982803,6.5097,188.73,188.67,31.62753862]
[1735240983687,7.97614462,188.72,188.65,7.85065462]
[1735240983869,7.97614462,188.69,188.62,7.85065462]
[1735240984067,7.97614462,188.69,188.63,7.85065462]
[1735240984387,12.40951526,188.69,188.63,12.28402526]
[1735240984995,12.28402526,188.69,188.64,23.776884]
[1735240985586,12.28402526,188.69,188.63,23.776884]
[1735240985789,12.28402526,188.68,188.63,23.776884]
[1735240985967,12.28402526,188.68,188.62,12.28402526]
[1735240986171,12.28402526,188.67,188.61,25.53822526]
[1735240986385,12.28402526,188.66,188.59,12.28402526]
[1735240986694,12.28402526,188.66,188.6,12.28402526]
[1735240987789,20.12549,188.7,188.61,36.06090926]
[1735240988091,12.28402526,188.69,188.63,12.28402526]
[1735240988271,12.28402526,188.69,188.63,23.776884]
[1735240989183,12.28402526,188.68,188.61,36.06090926]
[1735240989381,0.12549,188.67,188.61,36.06090926]
[1735240991615,12.28402526,188.65,188.57,13.2573]
[1735240991776,12.28402526,188.61,188.5,1.5901]
[1735240992112,18.93972526,188.61,188.54,12.28402526]
[1735240992278,6.6557,188.61,188.54,12.28402526]
[1735240992481,18.93972526,188.61,188.54,12.28402526]
[1735240992698,12.28402526,188.6,188.53,12.28402526]
[1735240992875,12.28402526,188.59,188.53,12.28402526]
[1735240993199,0.12549,188.6,188.52,12.28402526]
[1735240993396,12.28402526,188.59,188.53,12.28402526]
[1735240993578,12.40951526,188.6,188.54,12.28402526]
[1735240993980,12.40951526,188.6,188.53,12.28402526]
[1735240994179,0.12549,188.6,188.55,23.776884]
[1735240994580,12.40951526,188.6,188.55,23.776884]
[1735240995100,12.40951526,188.6,188.53,12.28402526]
[1735240996286,0.12549,188.58,188.53,12.28402526]
[1735240996488,0.12549,188.58,188.52,12.28402526]
[1735240996689,12.28402526,188.59,188.53,23.776884]
[1735240996894,12.28402526,188.6,188.53,36.06090926]
[1735240998276,12.28402526,188.6,188.53,23.776884]
[1735240998491,12.28402526,188.6,188.55,23.776884]
[1735240998701,12.40951526,188.6,188.55,23.776884]
[1735240999205,12.40951526,188.6,188.53,12.28402526]
[1735240999999,12.28402526,188.59,188.52,36.06090926]
[1735241000182,12.40951526,188.6,188.53,12.28402526]
[1735241000388,0.12549,188.6,188.55,23.776884]
[1735241003010,12.40951526,188.6,188.54,23.776884]
[1735241003528,0.12549,188.58,188.52,12.28402526]
[1735241004117,12.28402526,188.58,188.51,36.06090926]
[1735241004309,12.40951526,188.57,188.52,23.776884]
[1735241004519,13.98021526,188.57,188.52,23.776884]
[1735241004821,13.98021526,188.57,188.51,23.776884]
[1735241005927,12.40951526,188.55,188.48,12.28402526]
[1735241006127,12.40951526,188.55,188.49,23.776884]
[1735241006295,0.12549,188.55,188.49,31.65078166]
[1735241006494,7.87389766,188.55,188.49,23.776884]
[1735241006902,7.99938766,188.56,188.49,7.87389766]
[1735241010603,1.5707,188.57,188.53,23.776884]
[1735241012947,1.5707,188.57,188.53,7.87389766]
[1735241013146,1.5707,188.57,188.52,7.87389766]
[1735241013338,1.5707,188.57,188.53,23.776884]
[1735241015331,6.6557,188.61,188.57,23.776884]
[1735241015535,6.6557,188.61,188.59,7.87389766]
[1735241015733,1.5102,188.62,188.6,31.65078166]
[1735241015936,1.5102,188.62,188.61,23.776884]
[1735241016114,6.595,188.66,188.61,7.87389766]
[1735241016446,6.595,188.66,188.64,23.776884]
[1735241016615,1.5102,188.7,188.64,31.65078166]
[1735241016815,9.38409766,188.7,188.64,23.776884]
[1735241017215,0.12549,188.69,188.64,23.776884]
[1735241017752,7.99938766,188.69,188.64,23.776884]
[1735241018215,12.28453206,188.69,188.64,23.776884]
[1735241018750,0.12549,188.69,188.64,23.776884]
[1735241019253,0.12549,188.69,188.63,12.28453206]
[1735241020338,0.12549,188.69,188.64,23.776884]
[1735241020563,1.5102,188.7,188.66,23.776884]
[1735241020970,1.5102,188.7,188.65,23.776884]
[1735241021176,0.12549,188.69,188.63,12.28453206]
[1735241021340,12.28453206,188.68,188.62,12.28453206]
[1735241021541,12.28453206,188.68,188.62,23.776884]
[1735241021972,0.12549,188.67,188.62,23.776884]
[1735241022197,32.28453206,188.68,188.62,12.28453206]
[1735241022468,13.79473206,188.7,188.64,23.776884]
[1735241023067,0.12549,188.69,188.64,23.776884]
[1735241023668,1.5102,188.7,188.64,36.06141606]
[1735241023868,1.5102,188.7,188.64,12.28453206]
[1735241024747,13.79473206,188.7,188.63,36.06141606]
[1735241027094,12.28453206,188.69,188.63,36.06141606]
[1735241027476,12.28453206,188.68,188.63,23.776884]
[1735241028402,12.28453206,188.67,188.6,12.28453206]
[1735241028683,12.41002206,188.66,188.59,25.54053206]
[1735241028881,12.28453206,188.65,188.59,13.256]
[1735241029195,12.28453206,188.65,188.6,23.776884]
[1735241029489,18.44343206,188.64,188.57,12.28453206]
[1735241029720,12.28453206,188.63,188.57,12.28453206]
[1735241029994,12.28453206,188.63,188.58,23.776884]
[1735241030588,18.44343206,188.64,188.58,12.28453206]
[1735241030772,6.1589,188.64,188.59,23.776884]
[1735241031388,18.44343206,188.64,188.59,23.776884]
[1735241034709,12.28453206,188.62,188.56,12.28453206]
[1735241034919,13.92242206,188.63,188.56,12.28453206]
[1735241035231,13.92242206,188.63,188.58,23.776884]
[1735241037515,12.41002206,188.61,188.55,12.28453206]
[1735241037894,0.12549,188.61,188.56,23.776884]
[1735241039529,0.12549,188.61,188.55,12.28453206]
[1735241039690,0.12549,188.61,188.56,12.28453206]
[1735241040313,7.99340779,188.62,188.56,7.86791779]
[1735241041113,1.5124,188.63,188.59,7.86791779]
[1735241041812,1.5124,188.63,188.58,7.86791779]
[1735241042193,1.5124,188.63,188.59,31.64480179]
[1735241042389,16.53307213,188.71,188.61,31.64480179]
[1735241042591,20.0,188.68,188.62,7.86791779]
[1735241042800,7.86791779,188.7,188.63,31.64480179]
[1735241043196,8.2251,188.71,188.66,7.86791779]
[1735241043632,7.99340779,188.7,188.63,7.86791779]
[1735241043932,7.99340779,188.7,188.65,23.776884]
[1735241044232,8.2251,188.71,188.68,7.86791779]
[1735241045122,8.2251,188.76,188.7,7.86791779]
[1735241046116,0.12549,188.75,188.69,7.86791779]
[1735241046291,20.50114681,188.76,188.69,12.27604681]
[1735241046496,8.2251,188.76,188.7,12.27604681]
[1735241046909,0.12549,188.75,188.69,12.27604681]
[1735241048016,20.50114681,188.76,188.7,23.776884]
[1735241048220,8.2251,188.76,188.71,12.27604681]
[1735241048424,8.2251,188.76,188.72,36.05293081]
[1735241049017,20.50114681,188.82,188.75,12.27604681]
[1735241049522,0.12549,188.81,188.75,12.27604681]
[1735241050251,20.50114681,188.82,188.76,23.776884]
[1735241050611,20.50114681,188.82,188.75,12.27604681]
[1735241051349,12.40153681,188.81,188.75,23.776884]
[1735241051510,12.27604681,188.78,188.71,12.27604681]
[1735241051707,12.27604681,188.76,188.69,12.27604681]
[1735241051910,12.27604681,188.74,188.65,13.2518]
[1735241052133,0.12549,188.81,188.67,12.27604681]
[1735241052336,0.12549,188.78,188.68,23.776884]
[1735241052733,0.12549,188.74,188.68,12.27604681]
[1735241052918,20.0,188.79,188.62,0.79489881]
[1735241052919,12.27604681,188.76,188.7,12.27604681]
[1735241053120,12.27604681,188.75,188.7,23.776884]
[1735241053326,12.27604681,188.74,188.69,23.776884]
[1735241053826,12.27604681,188.75,188.69,23.776884]
[1735241054137,12.27604681,188.75,188.68,12.27604681]
[1735241054138,0.12549,188.74,188.68,12.27604681]
[1735241054442,0.12549,188.74,188.68,36.05293081]
[1735241055535,12.27604681,188.75,188.69,23.776884]
[1735241055740,12.27604681,188.76,188.69,36.05293081]
[1735241055938,12.27604681,188.76,188.7,12.27604681]
[1735241056238,12.27604681,188.76,188.69,23.776884]
[1735241056239,32.27604681,188.79,188.72,12.27604681]
[1735241056626,12.27604681,188.8,188.74,12.27604681]
[1735241057023,12.27604681,188.81,188.74,12.27604681]
[1735241057234,0.12549,188.79,188.74,12.27604681]
[1735241057550,0.12549,188.79,188.73,12.27604681]
[1735241057839,82.6,188.87,188.71,12.27604681]
[1735241057840,12.27604681,188.78,188.71,12.27604681]
[1735241058222,12.27604681,188.78,188.73,23.776884]
[1735241059034,12.27604681,188.79,188.73,23.776884]
[1735241059213,0.12549,188.79,188.73,12.27604681]
[1735241059420,12.27604681,188.81,188.75,36.05293081]
[1735241059834,20.50114681,188.82,188.75,36.05293081]
[1735241060121,8.2251,188.82,188.78,12.27604681]
[1735241061313,12.27604681,188.86,188.79,12.27604681]
[1735241061519,8.0886,188.87,188.8,23.776884]
[1735241061852,8.0886,188.87,188.82,36.05293081]
[1735241062221,8.0886,188.87,188.79,13.242]
[1735241062222,12.27604681,188.9,188.83,12.27604681]
[1735241062435,12.27604681,188.91,188.84,36.05293081]
[1735241062635,20.36464681,188.92,188.85,12.27604681]
[1735241063139,20.36464681,188.92,188.84,23.776884]
[1735241063140,12.27604681,188.9,188.84,23.776884]
[1735241064921,20.36464681,188.92,188.86,23.776884]
[1735241065128,20.0,188.92,188.88,36.05293081]
[1735241065445,23.15684399,188.95,188.89,12.27604681]
[1735241066235,12.27604681,188.94,188.87,12.27604681]
[1735241066437,12.27604681,188.9,188.83,12.27604681]